lending/lending_fUSD_20250425
["ID","MTS","AMOUNT","RATE_DAILY","PERIOD"]
[358920204,1745545459073,-500.0,0.00050136,30]
[358920205,1745545459113,-168.68372,0.00050138,120]
[358920206,1745545459150,-151.0,0.00050138,120]
[358920207,1745545459191,-1757.16,0.0005041,30]
[358920208,1745545459231,-204.8854709,0.0005041,30]
[358920209,1745545459275,-500.0,0.0005041,30]
[358920210,1745545459315,-500.0,0.0005041,30]
[358920211,1745545459357,-1673.18,0.0005041,30]
[358920212,1745545459398,-524.72564314,0.0005041,30]
[358920213,1745545459438,-797.02,0.0005041,30]
[358920214,1745545459480,-1168.97,0.0005041,30]
[358920215,1745545459521,-1038.01,0.0005041,30]
[358920216,1745545459564,-690.29,0.0005041,30]
[358920217,1745545459605,-1114.87,0.0005041,30]
[358920218,1745545459644,-500.0,0.0005041,30]
[358920219,1745545459684,-500.0,0.0005041,30]
[358920220,1745545459724,-717.48,0.0005041,30]
[358920221,1745545459763,-1062.7,0.0005041,30]
[358920222,1745545459801,-1633.77,0.0005041,30]
[358920223,1745545459840,-500.0,0.0005041,30]
[358920224,1745545459880,-1248.52,0.0005041,30]
[358920225,1745545459920,-633.48,0.0005041,30]
[358920226,1745545459959,-609.11625058,0.0005041,30]
[358920227,1745545459997,-500.0,0.0005041,30]
[358920228,1745545460037,-2641.69,0.0005041,30]
[358920229,1745545460074,-500.0,0.0005041,30]
[358920230,1745545460112,-2881.29,0.0005041,30]
[358920231,1745545460148,-500.0,0.0005041,30]
[358920232,1745545460183,-500.0,0.0005041,30]
[358920233,1745545460220,-500.0,0.0005041,30]
[358920234,1745545460257,-809.25,0.0005041,30]
[358920235,1745545460293,-975.25,0.0005041,30]
[358920236,1745545460329,-10337.63,0.0005041,30]
[358920237,1745545460365,-3067.16,0.0005041,30]
[358920238,1745545460402,-1318.12,0.0005041,30]
[358920239,1745545460440,-507.43,0.0005041,30]
[358920240,1745545460479,-570.23,0.0005041,30]
[358920241,1745545460518,-627.41,0.0005041,30]
[358920242,1745545460556,-500.0,0.0005041,30]
[358920243,1745545460592,-500.0,0.0005041,30]
[358920244,1745545460629,-679.54,0.0005041,30]
[358920245,1745545460668,-1252.46,0.0005041,30]
[358920246,1745545460704,-500.0,0.0005041,30]
[358920247,1745545460741,-575.58,0.0005041,30]
[358920248,1745545460777,-2182.67,0.0005041,30]
[358920249,1745545460814,-521.29,0.0005041,30]
[358920250,1745545460849,-1867.96,0.0005041,30]
[358920251,1745545460887,-1074.64,0.0005041,30]
[358920252,1745545460926,-3545.51,0.0005041,30]
[358920253,1745545460961,-728.08,0.0005041,30]
[358920254,1745545460997,-672.38,0.0005041,30]
[358920255,1745545461034,-500.0,0.0005041,30]
[358920256,1745545461071,-1720.77,0.0005041,30]
[358920257,1745545461107,-3286.78,0.0005041,30]
[358920258,1745545461147,-500.0,0.0005041,30]
[358920259,1745545461190,-1180.4,0.0005041,30]
[358920260,1745545461230,-500.0,0.0005041,30]
[358920261,1745545461269,-500.0,0.0005041,30]
[358920262,1745545461306,-502.18,0.0005041,30]
[358920263,1745545461345,-3075.34,0.0005041,30]
[358920264,1745545461382,-1837.7,0.0005041,30]
[358920265,1745545461421,-3115.11,0.0005041,30]
[358920266,1745545461460,-500.0,0.0005041,30]
[358920267,1745545461498,-1656.27,0.0005041,30]
[358920268,1745545461536,-1741.99,0.0005041,30]
[358920269,1745545461573,-919.24,0.0005041,30]
[358920270,1745545461609,-513.53469325,0.0005041,30]
[358920271,1745545461646,-2447.99,0.0005041,30]
[358920272,1745545461682,-500.0,0.0005041,30]
[358920273,1745545461718,-8924.7,0.0005041,30]
[358920274,1745545461753,-500.0,0.0005041,30]
[358920275,1745545461792,-1868.99,0.0005041,30]
[358920276,1745545461828,-770.76,0.0005041,30]
[358920277,1745545462071,-818.8,0.0005041,30]
[358920278,1745545462121,-500.0,0.0005041,30]
[358920279,1745545462160,-1584.41,0.0005041,30]
[358920280,1745545462200,-1480.64,0.0005041,30]
[358920281,1745545462239,-572.56,0.0005041,30]
[358920282,1745545462273,-715.9,0.0005041,30]
[358920283,1745545462308,-500.0,0.0005041,30]
[358920284,1745545462344,-655.98,0.0005041,30]
[358920285,1745545462379,-214.45999672,0.0005041,30]
[358920286,1745545462414,-500.0,0.0005041,30]
[358920287,1745545462449,-786.19,0.0005041,30]
[358920288,1745545462484,-500.0,0.0005041,30]
[358920289,1745545462517,-733.82,0.0005041,30]
[358920290,1745545462552,-760.58,0.0005041,30]
[358920291,1745545462587,-500.0,0.0005041,30]
[358920292,1745545462628,-1510.41,0.0005041,30]
[358920293,1745545462665,-825.68,0.0005041,30]
[358920294,1745545462703,-500.0,0.0005041,30]
[358920295,1745545462739,-1091.92,0.0005041,30]
[358920296,1745545462773,-500.0,0.0005041,30]
[358920297,1745545462811,-500.0,0.0005041,30]
[358920298,1745545462848,-3345.59,0.0005041,30]
[358920299,1745545462885,-500.0,0.0005041,30]
[358920300,1745545462923,-964.01,0.0005041,30]
[358920301,1745545462959,-500.0,0.0005041,30]
[358920302,1745545462998,-579.02,0.0005041,30]
[358920303,1745545463034,-500.0,0.0005041,30]
[358920304,1745545463070,-3181.51,0.0005041,30]
[358920305,1745545463107,-1127.53,0.0005041,30]
[358920306,1745545463143,-1405.73,0.0005041,30]
[358920307,1745545463180,-918.96,0.0005041,30]
[358920308,1745545463217,-970.8,0.0005041,30]
[358920309,1745545463252,-1253.7,0.0005041,30]
[358920310,1745545463290,-500.0,0.0005041,30]
[358920311,1745545463329,-1119.69,0.0005041,30]
[358920312,1745545463364,-500.0,0.0005041,30]
[358920313,1745545463399,-616.95,0.0005041,30]
[358920314,1745545463435,-1770.63,0.0005041,30]
[358920315,1745545463472,-500.0,0.0005041,30]
[358920316,1745545463513,-2204.65,0.0005041,30]
[358920317,1745545463554,-735.34,0.0005041,30]
[358920318,1745545463596,-845.57,0.0005041,30]
[358920319,1745545463639,-506.82,0.0005041,30]
[358920320,1745545463682,-771.61,0.0005041,30]
[358920321,1745545463724,-797.78,0.0005041,30]
[358920322,1745545463765,-500.0,0.0005041,30]
[358920323,1745545463806,-500.0,0.0005041,30]
[358920324,1745545463846,-1617.03,0.0005041,30]
[358920325,1745545463888,-661.15,0.0005041,30]
[358920326,1745545463927,-500.0,0.0005041,30]
[358920327,1745545463967,-1431.22,0.0005041,30]
[358920328,1745545464004,-899.41,0.0005041,30]
[358920329,1745545464040,-1145.2,0.0005041,30]
[358920330,1745545464079,-823.48,0.0005041,30]
[358920331,1745545464116,-500.0,0.0005041,30]
[358920332,1745545464156,-680.92,0.0005041,30]
[358920333,1745545464195,-511.66,0.0005041,30]
[358920334,1745545464231,-2134.81,0.0005041,30]
[358920335,1745545464267,-503.98,0.0005041,30]
[358920336,1745545464303,-500.0,0.0005041,30]
[358920337,1745545464340,-949.81,0.0005041,30]
[358920338,1745545464377,-520.85,0.0005041,30]
[358920339,1745545464414,-1317.65,0.0005041,30]
[358920340,1745545464452,-500.0,0.0005041,30]
[358920341,1745545464489,-1006.04,0.0005041,30]
[358920342,1745545464525,-500.0,0.0005041,30]
[358920343,1745545464562,-34592.57,0.0005041,30]
[358920344,1745545464601,-1128.15,0.0005041,30]
[358920345,1745545464640,-742.75,0.0005041,30]
[358920346,1745545464678,-500.0,0.0005041,30]
[358920347,1745545464715,-500.0,0.0005041,30]
[358920348,1745545464755,-500.0,0.0005041,30]
[358920349,1745545464793,-1846.29,0.0005041,30]
[358920350,1745545464830,-581.2,0.0005041,30]
[358920351,1745545464870,-748.35,0.0005041,30]
[358920352,1745545464909,-1159.23,0.0005041,30]
[358920353,1745545464952,-500.0,0.0005041,30]
[358920354,1745545464992,-1415.98,0.0005041,30]
[358920355,1745545465034,-17345.41,0.0005041,30]
[358920356,1745545465072,-475.29185759,0.0005041,30]
[358920357,1745545465114,-945.17,0.0005041,30]
[358920358,1745545465153,-500.0,0.0005041,30]
[358920359,1745545465194,-628.22,0.0005041,30]
[358920360,1745545465236,-601.01,0.0005041,30]
[358920361,1745545465276,-521.14,0.0005041,30]
[358920362,1745545465312,-500.0,0.0005041,30]
[358920363,1745545465350,-909.31,0.0005041,30]
[358920364,1745545465387,-151.0,0.0005041,120]
[358920365,1745545465427,-1556.81,0.0005041,30]
[358920366,1745545465469,-500.0,0.0005041,30]
[358920367,1745545465507,-1076.02,0.0005041,30]
[358920368,1745545465546,-206.896493,0.0005041,120]
[358920369,1745545465584,-551.43,0.0005041,30]
[358920370,1745545465622,-560.99,0.0005041,30]
[358920371,1745545465658,-500.0,0.0005041,30]
[358920372,1745545465695,-500.0,0.0005041,30]
[358920373,1745545465732,-743.83,0.0005041,30]
[358920374,1745545465768,-500.0,0.0005041,30]
[358920375,1745545465806,-206.896493,0.0005041,120]
[358920376,1745545465843,-151.0,0.0005041,120]
[358920377,1745545465880,-716.88,0.0005041,30]
[358920378,1745545465918,-500.0,0.0005041,30]
[358920379,1745545465959,-6518.42,0.0005041,30]
[358920380,1745545465994,-500.0,0.0005041,30]
[358920381,1745545466222,-6050.470095,0.0005041,30]
[358920382,1745545466273,-500.0,0.0005041,30]
[358920383,1745545466311,-500.0,0.0005041,30]
[358920384,1745545466349,-500.0,0.0005041,30]
[358920385,1745545466386,-500.0,0.0005041,30]
[358920386,1745545466427,-1077.87,0.0005041,30]
[358920387,1745545466466,-500.0,0.0005041,30]
[358920388,1745545466504,-599.09,0.0005041,30]
[358920389,1745545466542,-516.8,0.0005041,30]
[358920390,1745545466579,-840.45,0.0005041,30]
[358920391,1745545466615,-535.24,0.0005041,30]
[358920392,1745545466651,-500.0,0.0005041,30]
[358920393,1745545466691,-1206.69,0.0005041,30]
[358920394,1745545466727,-530.1,0.0005041,30]
[358920395,1745545466764,-582.02898019,0.0005041,30]
[358920396,1745545466800,-1653.86,0.0005041,30]
[358920397,1745545466838,-1755.79,0.0005041,30]
[358920398,1745545466874,-500.0,0.0005041,30]
[358920399,1745545466912,-780.2,0.0005041,30]
[358920400,1745545466951,-606.95,0.0005041,30]
[358920401,1745545466987,-1333.8,0.0005041,30]
[358920402,1745545467023,-574.35,0.0005041,30]
[358920403,1745545467060,-782.478522,0.0005041,30]
[358920404,1745545467096,-500.0,0.0005041,30]
[358920405,1745545467138,-500.0,0.0005041,30]
[358920406,1745545467177,-262.85946503,0.0005041,30]
[358920407,1745545467215,-500.0,0.0005041,30]
[358920408,1745545467256,-583.66,0.0005041,120]
[358920409,1745545467292,-1414.99,0.0005041,30]
[358920410,1745545467328,-1072.46,0.0005041,30]
[358920411,1745545467366,-500.0,0.0005041,30]
[358920412,1745545467402,-1021.91,0.0005041,30]
[358920413,1745545467438,-500.0,0.0005041,30]
[358920414,1745545467476,-1937.76,0.0005041,30]
[358920415,1745545467514,-500.0,0.0005041,30]
[358920416,1745545467551,-500.0,0.0005041,30]
[358920417,1745545467588,-500.0,0.0005041,30]
[358920418,1745545467625,-500.0,0.0005041,30]
[358920419,1745545467661,-500.0,0.0005041,30]
[358920420,1745545467697,-1156.26,0.0005041,30]
[358920421,1745545467734,-500.0,0.0005041,30]
[358920422,1745545467771,-759.106322,0.0005041,30]
[358920423,1745545467808,-821.73,0.0005041,30]
[358920424,1745545467844,-809.65,0.0005041,30]
[358920425,1745545467880,-500.0,0.0005041,30]
[358920426,1745545467917,-500.0,0.0005041,30]
[358920427,1745545467954,-1231.82,0.0005041,30]
[358920428,1745545467990,-500.0,0.0005041,30]
[358920429,1745545468027,-1214.56,0.0005041,30]
[358920430,1745545468061,-500.0,0.0005041,30]
[358920431,1745545468097,-2849.2,0.0005041,30]
[358920432,1745545468133,-500.0,0.0005041,30]
[358920433,1745545468170,-3096.48,0.0005041,30]
[358920434,1745545468207,-6517.27,0.0005041,30]
[358920435,1745545468245,-500.0,0.0005041,30]
[358920436,1745545468284,-1964.64,0.0005041,30]
[358920437,1745545468323,-642.502757,0.0005041,120]
[358920438,1745545468362,-528.4,0.0005041,30]
[358920439,1745545468401,-500.0,0.0005041,30]
[358920440,1745545468440,-5076.34,0.0005041,30]
[358920441,1745545468479,-642.502757,0.0005041,120]
[358920442,1745545468518,-3017.9,0.0005041,30]
[358920443,1745545468556,-500.0,0.0005041,30]
[358920444,1745545468596,-1363.63,0.0005041,30]
[358920445,1745545468635,-572.21,0.0005041,30]
[358920446,1745545468672,-500.0,0.0005041,30]
[358920447,1745545468710,-1757.16,0.00050684,30]
[358920448,1745545468748,-500.0,0.00050684,30]
[358920449,1745545468784,-500.0,0.00050684,30]
[358920450,1745545468821,-1673.18,0.00050684,30]
[358920451,1745545468858,-797.02,0.00050684,30]
[358920452,1745545468895,-1168.97,0.00050684,30]
[358920453,1745545468939,-1038.01,0.00050684,30]
[358920454,1745545468976,-1114.87,0.00050684,30]
[358920455,1745545469014,-690.29,0.00050684,30]
[358920456,1745545469050,-500.0,0.00050684,30]
[358920457,1745545469084,-500.0,0.00050684,30]
[358920458,1745545469121,-717.48,0.00050684,30]
[358920459,1745545469157,-1062.7,0.00050684,30]
[358920460,1745545469194,-1633.77,0.00050684,30]
[358920461,1745545469229,-553.9522907,0.00050684,30]
[358920462,1745545469267,-1248.52,0.00050684,30]
[358920463,1745545469303,-633.48,0.00050684,30]
[358920464,1745545469338,-500.0,0.00050684,30]
[358920465,1745545469375,-2641.69,0.00050684,30]
[358920466,1745545469413,-500.0,0.00050684,30]
[358920467,1745545469452,-2881.29,0.00050684,30]
[358920468,1745545469491,-500.0,0.00050684,30]
[358920469,1745545469529,-500.0,0.00050684,30]
[358920470,1745545469566,-500.0,0.00050684,30]
[358920471,1745545469605,-809.25,0.00050684,30]
[358920472,1745545469642,-975.25,0.00050684,30]
[358920473,1745545469679,-10337.63,0.00050684,30]
[358920474,1745545469717,-3067.16,0.00050684,30]
[358920475,1745545469755,-1318.12,0.00050684,30]
[358920476,1745545469791,-507.43,0.00050684,30]
[358920477,1745545469826,-570.23,0.00050684,30]
[358920478,1745545469862,-627.41,0.00050684,30]
[358920479,1745545469900,-500.0,0.00050684,30]
[358920480,1745545469938,-500.0,0.00050684,30]
[358920481,1745545469976,-679.54,0.00050684,30]
[358920482,1745545470016,-1252.46,0.00050684,30]
[358920483,1745545470062,-500.0,0.00050684,30]
[358920484,1745545470103,-575.58,0.00050684,30]
[358920485,1745545470332,-2182.67,0.00050684,30]
[358920486,1745545470374,-521.29,0.00050684,30]
[358920487,1745545470416,-1867.96,0.00050684,30]
[358920488,1745545470458,-1074.64,0.00050684,30]
[358920489,1745545470500,-3545.51,0.00050684,30]
[358920490,1745545470541,-728.08,0.00050684,30]
[358920491,1745545470580,-672.38,0.00050684,30]
[358920492,1745545470617,-500.0,0.00050684,30]
[358920493,1745545470656,-1720.77,0.00050684,30]
[358920494,1745545470695,-3286.78,0.00050684,30]
[358920495,1745545470733,-500.0,0.00050684,30]
[358920496,1745545470772,-1180.4,0.00050684,30]
[358920497,1745545470810,-500.0,0.00050684,30]
[358920498,1745545470848,-500.0,0.00050684,30]
[358920499,1745545470884,-502.18,0.00050684,30]
[358920500,1745545470923,-3075.34,0.00050684,30]
[358920501,1745545470961,-1837.7,0.00050684,30]
[358920502,1745545471001,-3115.11,0.00050684,30]
[358920503,1745545471040,-500.0,0.00050684,30]
[358920504,1745545471078,-1656.27,0.00050684,30]
[358920505,1745545471116,-1741.99,0.00050684,30]
[358920506,1745545471154,-919.24,0.00050684,30]
[358920507,1745545471192,-2447.99,0.00050684,30]
[358920508,1745545471230,-500.0,0.00050684,30]
[358920509,1745545471268,-8924.7,0.00050684,30]
[358920510,1745545471305,-500.0,0.00050684,30]
[358920511,1745545471344,-1868.99,0.00050684,30]
[358920512,1745545471384,-770.76,0.00050684,30]
[358920513,1745545471423,-818.8,0.00050684,30]
[358920514,1745545471464,-500.0,0.00050684,30]
[358920515,1745545471503,-1584.41,0.00050684,30]
[358920516,1745545471542,-1480.64,0.00050684,30]
[358920517,1745545471579,-572.56,0.00050684,30]
[358920518,1745545471617,-500.0,0.00050684,30]
[358920519,1745545471657,-715.9,0.00050684,30]
[358920520,1745545471700,-2993.74,0.00050684,120]
[358920521,1745545471742,-655.98,0.00050684,30]
[358920522,1745545471782,-500.0,0.00050684,30]
[358920523,1745545471822,-786.19,0.00050684,30]
[358920524,1745545471862,-500.0,0.00050684,30]
[358920525,1745545471901,-733.82,0.00050684,30]
[358920526,1745545471942,-760.58,0.00050684,30]
[358920527,1745545471981,-442.68700413,0.00050684,30]
[358920528,1745545472022,-1510.41,0.00050684,30]
[358920529,1745545472061,-825.68,0.00050684,30]
[358920530,1745545472104,-500.0,0.00050684,30]
[358920531,1745545472146,-1091.92,0.00050684,30]
[358920532,1745545472189,-500.0,0.00050684,30]
[358920533,1745545472228,-500.0,0.00050684,30]
[358920534,1745545472266,-3345.59,0.00050684,30]
[358920535,1745545472305,-500.0,0.00050684,30]
[358920536,1745545472341,-964.01,0.00050684,30]
[358920537,1745545472380,-500.0,0.00050684,30]
[358920538,1745545472416,-579.02,0.00050684,30]
[358920539,1745545472454,-500.0,0.00050684,30]
[358920540,1745545472491,-3181.51,0.00050684,30]
[358920541,1745545472527,-1127.53,0.00050684,30]
[358920542,1745545472564,-1405.73,0.00050684,30]
[358920543,1745545472601,-918.96,0.00050684,30]
[358920544,1745545472639,-970.8,0.00050684,30]
[358920545,1745545472676,-1253.7,0.00050684,30]
[358920546,1745545472713,-500.0,0.00050684,30]
[358920547,1745545472751,-1119.69,0.00050684,30]
[358920548,1745545472792,-500.0,0.00050684,30]
[358920549,1745545472832,-616.95,0.00050684,30]
[358920550,1745545472871,-1770.63,0.00050684,30]
[358920551,1745545472912,-2204.65,0.00050684,30]
[358920552,1745545472960,-500.0,0.00050684,30]
[358920553,1745545473004,-735.34,0.00050684,30]
[358920554,1745545473047,-845.57,0.00050684,30]
[358920555,1745545473088,-506.82,0.00050684,30]
[358920556,1745545473129,-771.61,0.00050684,30]
[358920557,1745545473172,-797.78,0.00050684,30]
[358920558,1745545473212,-500.0,0.00050684,30]
[358920559,1745545473253,-500.0,0.00050684,30]
[358920560,1745545473294,-1617.03,0.00050684,30]
[358920561,1745545473336,-661.15,0.00050684,30]
[358920562,1745545473378,-500.0,0.00050684,30]
[358920563,1745545473633,-1431.22,0.00050684,30]
[358920564,1745545473679,-899.41,0.00050684,30]
[358920565,1745545473722,-1145.2,0.00050684,30]
[358920566,1745545473765,-823.48,0.00050684,30]
[358920567,1745545473810,-500.0,0.00050684,30]
[358920568,1745545473853,-680.92,0.00050684,30]
[358920569,1745545473897,-511.66,0.00050684,30]
[358920570,1745545473941,-2134.81,0.00050684,30]
[358920571,1745545473981,-503.98,0.00050684,30]
[358920572,1745545474021,-180.08972102,0.00050684,30]
[358920573,1745545474062,-949.81,0.00050684,30]
[358920574,1745545474102,-520.85,0.00050684,30]
[358920575,1745545474141,-1317.65,0.00050684,30]
[358920576,1745545474182,-500.0,0.00050684,30]
[358920577,1745545474224,-1006.04,0.00050684,30]
[358920578,1745545474266,-500.0,0.00050684,30]
[358920579,1745545474308,-34592.57,0.00050684,30]
[358920580,1745545474347,-1128.15,0.00050684,30]
[358920581,1745545474387,-742.75,0.00050684,30]
[358920582,1745545474430,-500.0,0.00050684,30]
[358920583,1745545474474,-500.0,0.00050684,30]
[358920584,1745545474516,-500.0,0.00050684,30]
[358920585,1745545474557,-1846.29,0.00050684,30]
[358920586,1745545474599,-581.2,0.00050684,30]
[358920587,1745545474640,-748.35,0.00050684,30]
[358920588,1745545474682,-1159.23,0.00050684,30]
[358920589,1745545474894,-500.0,0.00050684,30]
[358920590,1745545474939,-1415.98,0.00050684,30]
[358920591,1745545474981,-17345.41,0.00050684,30]
[358920592,1745545475023,-196.410353,0.00050684,120]
[358920593,1745545475065,-945.17,0.00050684,30]
[358920594,1745545475103,-500.0,0.00050684,30]
[358920595,1745545475142,-628.22,0.00050684,30]
[358920596,1745545475180,-601.01,0.00050684,30]
[358920597,1745545475217,-521.14,0.00050684,30]
[358920598,1745545475256,-500.0,0.00050684,30]
[358920599,1745545475295,-909.31,0.00050684,30]
[358920600,1745545475333,-1556.81,0.00050684,30]
[358920601,1745545475370,-500.0,0.00050684,30]
[358920602,1745545475408,-1076.02,0.00050684,30]
[358920603,1745545475446,-551.43,0.00050684,30]
[358920604,1745545475485,-560.99,0.00050684,30]
[358920605,1745545475522,-289.17139563,0.00050684,30]
[358920606,1745545475561,-500.0,0.00050684,30]
[358920607,1745545475600,-743.83,0.00050684,30]
[358920608,1745545475639,-547.66703942,0.00050684,30]
[358920609,1745545475679,-716.88,0.00050684,30]
[358920610,1745545475718,-500.0,0.00050684,30]
[358920611,1745545475758,-6518.42,0.00050684,30]
[358920612,1745545475798,-500.0,0.00050684,30]
[358920613,1745545475837,-6050.470095,0.00050684,30]
[358920614,1745545475876,-500.0,0.00050684,30]
[358920615,1745545475914,-500.0,0.00050684,30]
[358920616,1745545475957,-500.0,0.00050684,30]
[358920617,1745545475997,-206.16958468,0.00050684,30]
[358920618,1745545476036,-1077.87,0.00050684,30]
[358920619,1745545476074,-359.77787365,0.00050684,30]
[358920620,1745545476111,-599.09,0.00050684,30]
[358920621,1745545476152,-516.8,0.00050684,30]
[358920622,1745545476192,-840.45,0.00050684,30]
[358920623,1745545476230,-535.24,0.00050684,30]
[358920624,1745545476266,-500.0,0.00050684,30]
[358920625,1745545476305,-1206.69,0.00050684,30]
[358920626,1745545476343,-530.1,0.00050684,30]
[358920627,1745545476380,-1653.86,0.00050684,30]
[358920628,1745545476419,-1755.79,0.00050684,30]
[358920629,1745545476459,-500.0,0.00050684,30]
[358920630,1745545476499,-780.2,0.00050684,30]
[358920631,1745545476536,-606.95,0.00050684,30]
[358920632,1745545476574,-1333.8,0.00050684,30]
[358920633,1745545476611,-574.35,0.00050684,30]
[358920634,1745545476648,-782.478522,0.00050684,30]
[358920635,1745545476686,-500.0,0.00050684,30]
[358920636,1745545476725,-500.0,0.00050684,30]
[358920637,1745545476763,-500.0,0.00050684,30]
[358920638,1745545476803,-583.66,0.00050684,120]
[358920639,1745545476842,-1414.99,0.00050684,30]
[358920640,1745545476882,-1072.46,0.00050684,30]
[358920641,1745545476921,-500.0,0.00050684,30]
[358920642,1745545476959,-1021.91,0.00050684,30]
[358920643,1745545476994,-500.0,0.00050684,30]
[358920644,1745545477033,-1937.76,0.00050684,30]
[358920645,1745545477070,-500.0,0.00050684,30]
[358920646,1745545477112,-500.0,0.00050684,30]
[358920647,1745545477157,-500.0,0.00050684,30]
[358920648,1745545477196,-500.0,0.00050684,30]
[358920649,1745545477233,-500.0,0.00050684,30]
[358920650,1745545477270,-1156.26,0.00050684,30]
[358920651,1745545477307,-500.0,0.00050684,30]
[358920652,1745545477345,-759.106322,0.00050684,30]
[358920653,1745545477383,-821.73,0.00050684,30]
[358920654,1745545477423,-809.65,0.00050684,30]
[358920655,1745545477463,-500.0,0.00050684,30]
[358920656,1745545477500,-500.0,0.00050684,30]
[358920657,1745545477536,-1231.82,0.00050684,30]
[358920658,1745545477572,-500.0,0.00050684,30]
[358920659,1745545477610,-1214.56,0.00050684,30]
[358920660,1745545477649,-500.0,0.00050684,30]
[358920661,1745545477687,-2849.2,0.00050684,30]
[358920662,1745545477724,-500.0,0.00050684,30]
[358920663,1745545477763,-3096.48,0.00050684,30]
[358920664,1745545477802,-6517.27,0.00050684,30]
[358920665,1745545477838,-500.0,0.00050684,30]
[358920666,1745545477876,-1964.64,0.00050684,30]
[358920667,1745545477913,-528.4,0.00050684,30]
[358920668,1745545477955,-500.0,0.00050684,30]
[358920669,1745545477994,-5076.34,0.00050684,30]
[358920670,1745545478031,-3017.9,0.00050684,30]
[358920671,1745545478067,-500.0,0.00050684,30]
[358920672,1745545478104,-1363.63,0.00050684,30]
[358920673,1745545478142,-572.21,0.00050684,30]
[358920674,1745545478188,-25473.2992427,0.0005072,120]
[358920675,1745545478226,-151.0,0.0005075,120]
[358920676,1745545478264,-151.0,0.0005075,120]
[358920677,1745545478301,-151.0,0.0005075,120]
[358920678,1745545478336,-151.0,0.0005075,120]
[358920679,1745545478373,-1757.16,0.00050958,30]
[358920680,1745545478411,-500.0,0.00050958,30]
[358920681,1745545478448,-500.0,0.00050958,30]
[358920682,1745545478489,-1673.18,0.00050958,30]
[358920683,1745545478530,-797.02,0.00050958,30]
[358920684,1745545478570,-1168.97,0.00050958,30]
[358920685,1745545478609,-1038.01,0.00050958,30]
[358920686,1745545478649,-1114.87,0.00050958,30]
[358920687,1745545478690,-690.29,0.00050958,30]
[358920688,1745545478730,-500.0,0.00050958,30]
[358920689,1745545478769,-500.0,0.00050958,30]
[358920690,1745545478811,-717.48,0.00050958,30]
[358920691,1745545478852,-1062.7,0.00050958,30]
[358920692,1745545478893,-1633.77,0.00050958,30]
[358920693,1745545479190,-1248.52,0.00050958,30]
[358920694,1745545479232,-633.48,0.00050958,30]
[358920695,1745545479271,-500.0,0.00050958,30]
[358920696,1745545479310,-2641.69,0.00050958,30]
[358920697,1745545479348,-500.0,0.00050958,30]
[358920698,1745545479389,-2881.29,0.00050958,30]
[358920699,1745545479438,-500.0,0.00050958,30]
[358920700,1745545479479,-500.0,0.00050958,30]
[358920701,1745545479520,-500.0,0.00050958,30]
[358920702,1745545479561,-809.25,0.00050958,30]
[358920703,1745545479602,-975.25,0.00050958,30]